[Event "*** Titled Tuesday 3|2 Blitz"]
[Site "Chess.com"]
[Date "2016.05.03"]
[Round "5"]
[White "GrigorGrigorov"]
[Black "sandropozo"]
[Result "1-0"]
[WhiteElo "2529"]
[BlackElo "2276"]
[TimeControl "180+2"]
[EndTime "18:05:12 PDT"]
[Termination "GrigorGrigorov won by resignation"]

1. d4 {[%clk 0:03:01.9]} 1... d5 {[%clk 0:03:00.3]} 2. Nf3 {[%clk 0:03:01.4]}
2... Nf6 {[%clk 0:03:00.3]} 3. c4 {[%clk 0:03:02.8]} 3... c6 {[%clk 0:03:01.2]}
4. Nbd2 {[%clk 0:03:01.9]} 4... g6 {[%clk 0:03:00.1]} 5. g3 {[%clk 0:03:01.1]}
5... Bg7 {[%clk 0:03:00.9]} 6. Bg2 {[%clk 0:03:02.6]} 6... O-O {[%clk
0:03:01.6]} 7. O-O {[%clk 0:03:03.6]} 7... Ne4 {[%clk 0:02:48.7]} 8. e3 {[%clk
0:02:59]} 8... Bf5 {[%clk 0:02:44.2]} 9. Qe2 {[%clk 0:02:54.3]} 9... Nd7 {[%clk
0:02:35]} 10. Nh4 {[%clk 0:02:54.5]} 10... Nxd2 {[%clk 0:02:36.1]} 11. Bxd2
{[%clk 0:02:54.3]} 11... Be6 {[%clk 0:02:33.3]} 12. cxd5 {[%clk 0:02:50.9]}
12... cxd5 {[%clk 0:02:31.2]} 13. Rac1 {[%clk 0:02:43.3]} 13... Qb6 {[%clk
0:02:26.3]} 14. b3 {[%clk 0:02:41.1]} 14... Nf6 {[%clk 0:02:25]} 15. Rc2 {[%clk
0:02:20.1]} 15... Bg4 {[%clk 0:02:23]} 16. Qd3 {[%clk 0:02:13.5]} 16... Qe6
{[%clk 0:02:10.3]} 17. f3 {[%clk 0:02:09.4]} 17... Bh3 {[%clk 0:02:08.4]} 18. g4
{[%clk 0:02:10.5]} 18... Bxg2 {[%clk 0:02:07.9]} 19. Nxg2 {[%clk 0:02:12]} 19...
Rac8 {[%clk 0:02:07.4]} 20. Rfc1 {[%clk 0:02:11.5]} 20... Qd7 {[%clk 0:02:03]}
21. Bb4 {[%clk 0:02:03.6]} 21... b6 {[%clk 0:01:53]} 22. Qa6 {[%clk 0:01:50.9]}
22... Rxc2 {[%clk 0:01:52.6]} 23. Rxc2 {[%clk 0:01:52]} 23... g5 {[%clk
0:01:48.7]} 24. Qa4 {[%clk 0:01:49.9]} 24... Qe6 {[%clk 0:01:39.5]} 25. Qc6
{[%clk 0:01:48.9]} 25... h5 {[%clk 0:01:28.1]} 26. Qxe6 {[%clk 0:01:41.8]} 26...
fxe6 {[%clk 0:01:29.7]} 27. Bxe7 {[%clk 0:01:40.5]} 27... Rf7 {[%clk 0:01:31.1]}
28. Bxf6 {[%clk 0:01:41.2]} 28... Rxf6 {[%clk 0:01:31.6]} 29. gxh5 {[%clk
0:01:30.4]} 29... Rxf3 {[%clk 0:01:30.8]} 30. Rc7 {[%clk 0:01:18.2]} 30... e5
{[%clk 0:01:28.1]} 31. dxe5 {[%clk 0:01:08.6]} 31... Bxe5 {[%clk 0:01:28.6]} 32.
Rd7 {[%clk 0:01:08.5]} 32... Rh3 {[%clk 0:01:25]} 33. Rxd5 {[%clk 0:01:08.6]}
33... Bxh2+ {[%clk 0:01:19.1]} 34. Kf2 {[%clk 0:01:09.2]} 34... Rxh5 {[%clk
0:01:17.5]} 35. Rd7 {[%clk 0:00:50.1]} 35... a5 {[%clk 0:01:11]} 36. Rb7 {[%clk
0:00:48.2]} 36... g4 {[%clk 0:01:11.8]} 37. Rxb6 {[%clk 0:00:42]} 37... Rf5+
{[%clk 0:01:11]} 38. Nf4 {[%clk 0:00:33.1]} 38... Bxf4 {[%clk 0:01:08.8]} 39.
exf4 {[%clk 0:00:33.8]} 39... Rxf4+ {[%clk 0:01:09.9]} 40. Kg3 {[%clk
0:00:34.2]} 40... Rd4 {[%clk 0:01:10.1]} 41. Rg6+ {[%clk 0:00:32.4]} 41... Kf7
{[%clk 0:01:11.1]} 42. Rxg4 {[%clk 0:00:33.4]} 42... Rxg4+ {[%clk 0:00:56.9]}
43. Kxg4 {[%clk 0:00:34]} 43... Ke6 {[%clk 0:00:58.5]} 44. Kf4 {[%clk
0:00:30.7]} 44... Kd5 {[%clk 0:00:59.3]} 45. Ke3 {[%clk 0:00:29.8]} 45... Kc5
{[%clk 0:00:55.1]} 46. a3 {[%clk 0:00:29.8]} 46... Kd5 {[%clk 0:00:46.9]} 47.
Kd3 {[%clk 0:00:30.3]} 47... Kc5 {[%clk 0:00:47.5]} 48. Kc3 {[%clk 0:00:16.5]}
48... Kd5 {[%clk 0:00:44.9]} 49. Kd3 {[%clk 0:00:16.7]} 49... Kc5 {[%clk
0:00:45.9]} 50. Ke4 {[%clk 0:00:18]} 50... Kc6 {[%clk 0:00:26.6]} 51. Kd4 {[%clk
0:00:15.9]} 51... Kb5 {[%clk 0:00:24.7]} 52. Kd5 {[%clk 0:00:15.3]} 52... Kb6
{[%clk 0:00:25.1]} 53. Kc4 {[%clk 0:00:14.7]} 53... a4 {[%clk 0:00:12.8]} 54. b4
{[%clk 0:00:12.4]} 54... Ka6 {[%clk 0:00:10.2]} 55. Kc5 {[%clk 0:00:12.9]} 55...
Kb7 {[%clk 0:00:10.4]} 56. Kb5 {[%clk 0:00:14]} 1-0

[Event "*** Titled Tuesday 3|2 Blitz"]
[Site "Chess.com"]
[Date "2016.05.03"]
[Round "5"]
[White "andretta"]
[Black "andryusha"]
[Result "1/2-1/2"]
[WhiteElo "2172"]
[BlackElo "2189"]
[TimeControl "180+2"]
[EndTime "18:05:25 PDT"]
[Termination "Game drawn by repetition"]

1. Nf3 {[%clk 0:03:01.9]} 1... c5 {[%clk 0:02:58.6]} 2. c4 {[%clk 0:03:03.8]}
2... Nc6 {[%clk 0:02:58.2]} 3. Nc3 {[%clk 0:03:04.3]} 3... e5 {[%clk 0:02:58.5]}
4. g3 {[%clk 0:03:05.4]} 4... Nf6 {[%clk 0:02:57.5]} 5. d3 {[%clk 0:03:00.6]}
5... d5 {[%clk 0:02:57.8]} 6. cxd5 {[%clk 0:02:55.7]} 6... Nxd5 {[%clk
0:02:58.3]} 7. Nxd5 {[%clk 0:02:50]} 7... Qxd5 {[%clk 0:02:57.5]} 8. Bg2 {[%clk
0:02:51.9]} 8... Be7 {[%clk 0:02:46.4]} 9. O-O {[%clk 0:02:52.4]} 9... O-O
{[%clk 0:02:47.3]} 10. Be3 {[%clk 0:02:53.8]} 10... Bg4 {[%clk 0:02:41]} 11. Nd4
{[%clk 0:02:52]} 11... Qxg2+ {[%clk 0:02:23.4]} 12. Kxg2 {[%clk 0:02:51.3]}
12... exd4 {[%clk 0:02:22.7]} 13. Bd2 {[%clk 0:02:38.6]} 13... Bf6 {[%clk
0:02:23]} 14. Rc1 {[%clk 0:02:36.4]} 14... b6 {[%clk 0:02:23.2]} 15. a3 {[%clk
0:02:37]} 15... a5 {[%clk 0:02:13.9]} 16. b4 {[%clk 0:02:33.3]} 16... axb4
{[%clk 0:02:14.2]} 17. axb4 {[%clk 0:02:34.8]} 17... Nxb4 {[%clk 0:01:47.4]} 18.
Bxb4 {[%clk 0:02:35.6]} 18... cxb4 {[%clk 0:01:48.5]} 19. Rb1 {[%clk 0:02:24.2]}
19... Be7 {[%clk 0:01:47.9]} 20. Rb2 {[%clk 0:02:20.2]} 20... Bc5 {[%clk
0:01:43.1]} 21. Qd2 {[%clk 0:02:04.8]} 21... Rfe8 {[%clk 0:01:37.4]} 22. Re1
{[%clk 0:02:00.9]} 22... Ra4 {[%clk 0:01:28.1]} 23. e4 {[%clk 0:02:01.5]} 23...
Be6 {[%clk 0:01:10.4]} 24. f4 {[%clk 0:02:00.7]} 24... b3 {[%clk 0:01:10.7]} 25.
f5 {[%clk 0:01:59.2]} 25... Bb4 {[%clk 0:01:11.8]} 26. Qe2 {[%clk 0:01:44.3]}
26... Bxf5 {[%clk 0:00:56.2]} 27. Reb1 {[%clk 0:01:43.5]} 27... Be6 {[%clk
0:00:49.6]} 28. Rxb3 {[%clk 0:01:44.7]} 28... Bxb3 {[%clk 0:00:48.4]} 29. Rxb3
{[%clk 0:01:46.6]} 29... Rea8 {[%clk 0:00:42.5]} 30. e5 {[%clk 0:01:40.5]} 30...
Bc3 {[%clk 0:00:39.7]} 31. Qe4 {[%clk 0:01:35.3]} 31... Ra2+ {[%clk 0:00:36.5]}
32. Kh3 {[%clk 0:01:36.2]} 32... R2a6 {[%clk 0:00:15.3]} 33. Rxb6 {[%clk
0:01:25.9]} 33... R6a7 {[%clk 0:00:13.2]} 34. Rc6 {[%clk 0:01:15.9]} 34... Re8
{[%clk 0:00:13.6]} 35. e6 {[%clk 0:00:49.1]} 35... fxe6 {[%clk 0:00:09.2]} 36.
Rxe6 {[%clk 0:00:51]} 36... Rxe6 {[%clk 0:00:06.8]} 37. Qxe6+ {[%clk 0:00:52.9]}
37... Rf7 {[%clk 0:00:07.7]} 38. Qd5 {[%clk 0:00:45]} 38... g6 {[%clk
0:00:08.4]} 39. Kg4 {[%clk 0:00:40.9]} 39... Kg7 {[%clk 0:00:08.2]} 40. Qe5+
{[%clk 0:00:39.6]} 40... Kg8 {[%clk 0:00:09.3]} 41. h4 {[%clk 0:00:40.5]} 41...
h5+ {[%clk 0:00:08.2]} 42. Kh3 {[%clk 0:00:31.8]} 42... Kh7 {[%clk 0:00:09]} 43.
Qe8 {[%clk 0:00:30.8]} 43... Kg7 {[%clk 0:00:10]} 44. Qe5+ {[%clk 0:00:28.2]}
44... Kh7 {[%clk 0:00:10.3]} 45. Qe4 {[%clk 0:00:29.8]} 45... Kg7 {[%clk
0:00:10.9]} 46. g4 {[%clk 0:00:31.4]} 46... hxg4+ {[%clk 0:00:11.9]} 47. Kxg4
{[%clk 0:00:33.1]} 47... Rf5 {[%clk 0:00:13.2]} 48. Qe7+ {[%clk 0:00:20.1]}
48... Kg8 {[%clk 0:00:11.3]} 49. Qe8+ {[%clk 0:00:19.8]} 49... Kg7 {[%clk
0:00:12.7]} 50. Qe7+ {[%clk 0:00:15.2]} 50... Kg8 {[%clk 0:00:13.6]} 51. Qe6+
{[%clk 0:00:12.7]} 51... Kg7 {[%clk 0:00:14.9]} 52. Qc6 {[%clk 0:00:14.3]} 52...
Rf6 {[%clk 0:00:14.9]} 53. Qd7+ {[%clk 0:00:14.9]} 53... Rf7 {[%clk 0:00:15.6]}
54. Qe8 {[%clk 0:00:13.7]} 54... Rf5 {[%clk 0:00:16.3]} 55. Qe6 {[%clk
0:00:14.2]} 55... Rf6 {[%clk 0:00:16.4]} 56. Qe5 {[%clk 0:00:14.6]} 56... Kf7
{[%clk 0:00:16.9]} 57. h5 {[%clk 0:00:14.9]} 57... gxh5+ {[%clk 0:00:17.5]} 58.
Kxh5 {[%clk 0:00:16.8]} 58... Re6 {[%clk 0:00:17.5]} 59. Qd5 {[%clk 0:00:17.2]}
59... Ke7 {[%clk 0:00:18.8]} 60. Kg5 {[%clk 0:00:16.8]} 60... Bd2+ {[%clk
0:00:19.3]} 61. Kf5 {[%clk 0:00:17.4]} 61... Rf6+ {[%clk 0:00:20.4]} 62. Ke4
{[%clk 0:00:17.6]} 62... Be3 {[%clk 0:00:21]} 63. Qb7+ {[%clk 0:00:16.8]} 63...
Ke6 {[%clk 0:00:22]} 64. Qd5+ {[%clk 0:00:16.2]} 64... Ke7 {[%clk 0:00:23.1]}
65. Qb7+ {[%clk 0:00:15.5]} 65... Ke6 {[%clk 0:00:24.4]} 66. Qc8+ {[%clk
0:00:15.8]} 66... Kd6 {[%clk 0:00:24.8]} 67. Qd8+ {[%clk 0:00:16]} 67... Ke6
{[%clk 0:00:26.1]} 68. Qd5+ {[%clk 0:00:17]} 68... Ke7 {[%clk 0:00:27.2]} 69.
Qc5+ {[%clk 0:00:18.6]} 69... Ke6 {[%clk 0:00:28.2]} 70. Qd5+ {[%clk 0:00:19.5]}
70... Ke7 {[%clk 0:00:29.5]} 1/2-1/2

[Event "*** Titled Tuesday 3|2 Blitz"]
[Site "Chess.com"]
[Date "2016.05.03"]
[Round "5"]
[White "Mischuk_D"]
[Black "Lying-Ted"]
[Result "1/2-1/2"]
[WhiteElo "2426"]
[BlackElo "2256"]
[TimeControl "180+2"]
[EndTime "18:06:52 PDT"]
[Termination "Game drawn by repetition"]

1. e4 {[%clk 0:02:49.3]} 1... e6 {[%clk 0:02:59.5]} 2. d4 {[%clk 0:02:49.1]}
2... d5 {[%clk 0:03:00.4]} 3. Bd3 {[%clk 0:02:48.1]} 3... dxe4 {[%clk
0:02:57.8]} 4. Bxe4 {[%clk 0:02:48.9]} 4... Nf6 {[%clk 0:02:59.1]} 5. Bf3 {[%clk
0:02:50.1]} 5... c5 {[%clk 0:03:00.2]} 6. Be3 {[%clk 0:02:49.7]} 6... cxd4
{[%clk 0:02:58.2]} 7. Bxd4 {[%clk 0:02:49.8]} 7... Nc6 {[%clk 0:02:59.7]} 8.
Bxc6+ {[%clk 0:02:49.9]} 8... bxc6 {[%clk 0:03:00.2]} 9. Ne2 {[%clk 0:02:49.3]}
9... Ba6 {[%clk 0:02:58.3]} 10. b3 {[%clk 0:02:42.5]} 10... c5 {[%clk
0:02:57.2]} 11. Bb2 {[%clk 0:02:41.8]} 11... Qxd1+ {[%clk 0:02:57.3]} 12. Kxd1
{[%clk 0:02:42.9]} 12... Rd8+ {[%clk 0:02:56.2]} 13. Ke1 {[%clk 0:02:43.6]}
13... Be7 {[%clk 0:02:56.6]} 14. c4 {[%clk 0:02:43.5]} 14... Bb7 {[%clk
0:02:56.5]} 15. f3 {[%clk 0:02:44.6]} 15... O-O {[%clk 0:02:56.4]} 16. Nbc3
{[%clk 0:02:45.2]} 16... Rd7 {[%clk 0:02:54.4]} 17. Rd1 {[%clk 0:02:44.9]} 17...
Rfd8 {[%clk 0:02:55]} 18. Rxd7 {[%clk 0:02:45.7]} 18... Rxd7 {[%clk 0:02:56.9]}
19. Na4 {[%clk 0:02:46.6]} 19... Bc6 {[%clk 0:02:53.7]} 20. Bxf6 {[%clk
0:02:44.1]} 20... gxf6 {[%clk 0:02:50.7]} 21. Nac3 {[%clk 0:02:42.9]} 21... f5
{[%clk 0:02:52.1]} 22. Nb5 {[%clk 0:02:35]} 22... a6 {[%clk 0:02:48.1]} 23. Nbc3
{[%clk 0:02:31.6]} 23... Bf6 {[%clk 0:02:41.5]} 24. h4 {[%clk 0:02:26.1]} 24...
Rd3 {[%clk 0:02:39.2]} 25. Nd1 {[%clk 0:02:22.8]} 25... a5 {[%clk 0:02:35.7]}
26. Nf4 {[%clk 0:02:14.3]} 26... Rd7 {[%clk 0:02:27.9]} 27. Ke2 {[%clk
0:02:05.5]} 27... a4 {[%clk 0:02:27.5]} 28. Ne3 {[%clk 0:02:06.2]} 28... axb3
{[%clk 0:02:23.7]} 29. axb3 {[%clk 0:02:08.1]} 29... Rb7 {[%clk 0:02:24.8]} 30.
Rb1 {[%clk 0:02:08.6]} 30... Bxh4 {[%clk 0:02:24.3]} 31. Nd3 {[%clk 0:02:06]}
31... Be7 {[%clk 0:02:20.1]} 32. Ne5 {[%clk 0:01:57.6]} 32... Ba4 {[%clk
0:02:12.6]} 33. Ra1 {[%clk 0:01:25.3]} 33... Bxb3 {[%clk 0:02:07.4]} 34. Kd3
{[%clk 0:01:26]} 34... Bf6 {[%clk 0:02:01.8]} 35. Ra8+ {[%clk 0:01:26.7]} 35...
Kg7 {[%clk 0:02:01.2]} 36. Nc6 {[%clk 0:01:27.7]} 36... Rd7+ {[%clk 0:01:53.4]}
37. Ke2 {[%clk 0:01:26.8]} 37... Bg5 {[%clk 0:01:42.2]} 38. Ne5 {[%clk
0:01:25.3]} 38... Rb7 {[%clk 0:01:23.4]} 39. g3 {[%clk 0:01:14.1]} 39... Bf6
{[%clk 0:01:20.6]} 40. Nd3 {[%clk 0:01:12.8]} 40... Bd4 {[%clk 0:01:16.2]} 41.
Rc8 {[%clk 0:01:12.1]} 41... Bxe3 {[%clk 0:01:03.3]} 42. Kxe3 {[%clk 0:01:14]}
42... Bxc4 {[%clk 0:01:04.3]} 43. Nxc5 {[%clk 0:01:15]} 43... Rb1 {[%clk
0:00:59.4]} 44. Rc7 {[%clk 0:01:15.4]} 44... Bd5 {[%clk 0:00:58.3]} 45. Nd3
{[%clk 0:01:14.2]} 45... Rb3 {[%clk 0:00:56.4]} 46. Kd4 {[%clk 0:01:07.5]} 46...
Rxd3+ {[%clk 0:00:53.6]} 47. Kxd3 {[%clk 0:01:08.1]} 47... Bxf3 {[%clk
0:00:55.5]} 48. Ke3 {[%clk 0:01:09.8]} 48... Bg4 {[%clk 0:00:55.7]} 49. Kf4
{[%clk 0:01:11]} 49... Kf6 {[%clk 0:00:55.8]} 50. Rc6 {[%clk 0:01:12.2]} 50...
h5 {[%clk 0:00:56.6]} 51. Ra6 {[%clk 0:01:13.1]} 51... Kg6 {[%clk 0:00:54.7]}
52. Rb6 {[%clk 0:01:14.1]} 52... Kf6 {[%clk 0:00:54.4]} 53. Ra6 {[%clk
0:01:15.2]} 53... Ke7 {[%clk 0:00:54.7]} 54. Ke5 {[%clk 0:01:14.3]} 54... f6+
{[%clk 0:00:54.2]} 55. Kd4 {[%clk 0:01:15.4]} 55... e5+ {[%clk 0:00:55.1]} 56.
Ke3 {[%clk 0:01:16.4]} 56... Kf7 {[%clk 0:00:55]} 57. Ra8 {[%clk 0:01:15.8]}
57... Kg6 {[%clk 0:00:56.1]} 58. Rg8+ {[%clk 0:01:16.6]} 58... Kf7 {[%clk
0:00:56.7]} 59. Rb8 {[%clk 0:01:16.4]} 59... Kg7 {[%clk 0:00:57.1]} 60. Ra8
{[%clk 0:01:17]} 60... Kg6 {[%clk 0:00:56.9]} 61. Rb8 {[%clk 0:01:17.8]} 61...
Kg5 {[%clk 0:00:55.8]} 62. Rg8+ {[%clk 0:01:18.4]} 62... Kh6 {[%clk 0:00:57.1]}
63. Rf8 {[%clk 0:01:19.5]} 63... Kg6 {[%clk 0:00:58.1]} 64. Rg8+ {[%clk
0:01:20.6]} 64... Kf7 {[%clk 0:00:58.2]} 65. Rh8 {[%clk 0:01:21.7]} 65... Ke6
{[%clk 0:00:58.8]} 66. Re8+ {[%clk 0:01:21.1]} 66... Kd5 {[%clk 0:00:58.6]} 67.
Re7 {[%clk 0:01:22.2]} 67... Kd6 {[%clk 0:00:51.9]} 68. Re8 {[%clk 0:01:22.6]}
68... Kd5 {[%clk 0:00:50]} 69. Re7 {[%clk 0:01:22.4]} 69... Kd6 {[%clk
0:00:50.1]} 70. Re8 {[%clk 0:01:23]} 70... Kd5 {[%clk 0:00:51.3]} 71. Rd8+
{[%clk 0:01:22.6]} 71... Ke6 {[%clk 0:00:52]} 72. Rh8 {[%clk 0:01:23.3]} 72...
Kd5 {[%clk 0:00:52.7]} 73. Rh7 {[%clk 0:01:23.1]} 73... Ke6 {[%clk 0:00:53.8]}
74. Kd3 {[%clk 0:01:21.8]} 74... Kd5 {[%clk 0:00:54.7]} 75. Ke3 {[%clk
0:01:22.6]} 75... Ke6 {[%clk 0:00:55.4]} 76. Ra7 {[%clk 0:01:22.8]} 76... Kd6
{[%clk 0:00:53.4]} 77. Rb7 {[%clk 0:01:23.2]} 77... Ke6 {[%clk 0:00:54.3]} 78.
Rc7 {[%clk 0:01:23.9]} 78... Kd6 {[%clk 0:00:54.6]} 79. Ra7 {[%clk 0:01:24.6]}
79... Ke6 {[%clk 0:00:55.6]} 80. Ra6+ {[%clk 0:01:25.7]} 80... Ke7 {[%clk
0:00:55.7]} 81. Rb6 {[%clk 0:01:26.7]} 81... Kf7 {[%clk 0:00:56.6]} 82. Rb8
{[%clk 0:01:27.6]} 82... Kg6 {[%clk 0:00:57.2]} 83. Rf8 {[%clk 0:01:28.5]} 83...
Kg7 {[%clk 0:00:58]} 84. Re8 {[%clk 0:01:29.2]} 84... Kf7 {[%clk 0:00:58.3]} 85.
Rd8 {[%clk 0:01:30.3]} 85... Kg6 {[%clk 0:00:57.8]} 86. Rh8 {[%clk 0:01:30.4]}
86... Kf7 {[%clk 0:00:58.2]} 87. Kf2 {[%clk 0:01:28.2]} 87... Ke6 {[%clk
0:00:58.5]} 88. Rh7 {[%clk 0:01:27.9]} 88... Kd5 {[%clk 0:00:59.1]} 89. Ke3
{[%clk 0:01:26.5]} 89... Ke6 {[%clk 0:00:58.7]} 90. Ra7 {[%clk 0:01:27.3]} 90...
Kd6 {[%clk 0:00:59.5]} 91. Rb7 {[%clk 0:01:25.2]} 91... Ke6 {[%clk 0:01:00.3]}
92. Rc7 {[%clk 0:01:26.1]} 92... Kd6 {[%clk 0:01:01.3]} 93. Ra7 {[%clk
0:01:26.7]} 93... Ke6 {[%clk 0:01:02.6]} 94. Kd3 {[%clk 0:01:28]} 94... Kd6
{[%clk 0:01:03.5]} 95. Kc4 {[%clk 0:01:29]} 95... f4 {[%clk 0:01:04.3]} 96. gxf4
{[%clk 0:01:29.3]} 96... exf4 {[%clk 0:01:05.5]} 97. Kd4 {[%clk 0:01:30.7]}
97... Ke6 {[%clk 0:01:06.5]} 98. Ke4 {[%clk 0:01:31.2]} 98... f3 {[%clk
0:01:05.9]} 99. Ra6+ {[%clk 0:01:31.7]} 99... Kf7 {[%clk 0:01:07.2]} 100. Ke3
{[%clk 0:01:32.9]} 100... Kg6 {[%clk 0:01:08.1]} 101. Kf2 {[%clk 0:01:34.1]}
101... Kg5 {[%clk 0:01:09]} 102. Kg3 {[%clk 0:01:29.6]} 102... h4+ {[%clk
0:01:08.7]} 103. Kf2 {[%clk 0:01:30.7]} 103... f5 {[%clk 0:01:10]} 104. Ra4
{[%clk 0:01:30.7]} 104... Bh5 {[%clk 0:01:06.5]} 105. Ra8 {[%clk 0:01:28]}
105... Bg4 {[%clk 0:01:07.4]} 106. Rh8 {[%clk 0:01:28.2]} 106... h3 {[%clk
0:01:08.1]} 107. Rh7 {[%clk 0:01:28.7]} 107... Kf4 {[%clk 0:01:09.1]} 108. Rh8
{[%clk 0:01:29.4]} 108... Kg5 {[%clk 0:01:10.1]} 109. Rh7 {[%clk 0:01:30.6]}
109... Kf4 {[%clk 0:01:11.2]} 110. Rh8 {[%clk 0:01:31.8]} 110... Kg5 {[%clk
0:01:12.5]} 111. Rh7 {[%clk 0:01:33]} 111... Kf4 {[%clk 0:01:13.8]} 1/2-1/2

[Event "*** Titled Tuesday 3|2 Blitz"]
[Site "Chess.com"]
[Date "2016.05.03"]
[Round "5"]
[White "PowerThinking2650"]
[Black "jeaston1"]
[Result "1/2-1/2"]
[WhiteElo "2179"]
[BlackElo "2016"]
[TimeControl "180+2"]
[EndTime "18:07:00 PDT"]
[Termination "Game drawn - insufficient material"]

1. e4 {[%clk 0:02:57.6]} 1... c5 {[%clk 0:03:00.6]} 2. Nf3 {[%clk 0:02:58]} 2...
Nc6 {[%clk 0:03:01.2]} 3. d4 {[%clk 0:02:58.6]} 3... cxd4 {[%clk 0:03:03.1]} 4.
Nxd4 {[%clk 0:02:59.2]} 4... Nf6 {[%clk 0:03:04.7]} 5. Nc3 {[%clk 0:02:59.1]}
5... e5 {[%clk 0:03:05.4]} 6. Ndb5 {[%clk 0:02:59.6]} 6... d6 {[%clk 0:03:06.2]}
7. Bg5 {[%clk 0:03:00.1]} 7... a6 {[%clk 0:03:06.8]} 8. Na3 {[%clk 0:03:00.5]}
8... b5 {[%clk 0:03:07.3]} 9. Nd5 {[%clk 0:03:01]} 9... Be7 {[%clk 0:03:08.6]}
10. Bxf6 {[%clk 0:03:01.7]} 10... Bxf6 {[%clk 0:03:10.5]} 11. c3 {[%clk
0:03:02.5]} 11... O-O {[%clk 0:03:11.6]} 12. Nc2 {[%clk 0:03:00.5]} 12... Rb8
{[%clk 0:03:12.7]} 13. Be2 {[%clk 0:03:00.2]} 13... Bg5 {[%clk 0:03:13]} 14. O-O
{[%clk 0:03:00.7]} 14... a5 {[%clk 0:03:13.9]} 15. b4 {[%clk 0:03:00.9]} 15...
axb4 {[%clk 0:03:13.2]} 16. cxb4 {[%clk 0:03:01]} 16... f5 {[%clk 0:03:05.7]}
17. exf5 {[%clk 0:03:01.2]} 17... Bxf5 {[%clk 0:03:05.2]} 18. Nce3 {[%clk
0:02:53.4]} 18... Be6 {[%clk 0:03:04.9]} 19. Bg4 {[%clk 0:02:46.4]} 19... Bf7
{[%clk 0:02:45.1]} 20. Qd3 {[%clk 0:02:26.8]} 20... Kh8 {[%clk 0:02:38]} 21. Bf5
{[%clk 0:02:23.9]} 21... Bxe3 {[%clk 0:02:35.7]} 22. Nxe3 {[%clk 0:02:20.6]}
22... g6 {[%clk 0:02:27.3]} 23. Be4 {[%clk 0:02:20.4]} 23... Nxb4 {[%clk
0:02:24.3]} 24. Qd2 {[%clk 0:02:13.4]} 24... Na6 {[%clk 0:02:16.3]} 25. Rfd1
{[%clk 0:02:09.8]} 25... Rb6 {[%clk 0:02:15.4]} 26. a4 {[%clk 0:01:49.4]} 26...
bxa4 {[%clk 0:02:13.5]} 27. Bd5 {[%clk 0:01:46.3]} 27... Nc5 {[%clk 0:02:07.3]}
28. Qa5 {[%clk 0:01:42.6]} 28... Bxd5 {[%clk 0:02:03.7]} 29. Nxd5 {[%clk
0:01:42.2]} 29... Ra6 {[%clk 0:01:55.6]} 30. Qc3 {[%clk 0:01:39.3]} 30... Ra7
{[%clk 0:01:36.5]} 31. f4 {[%clk 0:01:39.1]} 31... Qe8 {[%clk 0:01:17.8]} 32.
Re1 {[%clk 0:01:33.2]} 32... Qe6 {[%clk 0:01:04.3]} 33. Rad1 {[%clk 0:01:26.7]}
33... Nd7 {[%clk 0:00:39.2]} 34. Qc6 {[%clk 0:01:12.6]} 34... a3 {[%clk
0:00:29.5]} 35. Nc7 {[%clk 0:01:12.3]} 35... Qe7 {[%clk 0:00:30.2]} 36. Rxd6
{[%clk 0:01:11.1]} 36... Nb8 {[%clk 0:00:30.3]} 37. Qb6 {[%clk 0:00:26.7]} 37...
Qxc7 {[%clk 0:00:28.4]} 38. Qb4 {[%clk 0:00:23.9]} 38... Rb7 {[%clk 0:00:27.6]}
39. Qxa3 {[%clk 0:00:23.4]} 39... Ra7 {[%clk 0:00:28.6]} 40. Qb4 {[%clk
0:00:23.5]} 40... Na6 {[%clk 0:00:29.5]} 41. Qa3 {[%clk 0:00:21]} 41... Nc5
{[%clk 0:00:28.8]} 42. Rc6 {[%clk 0:00:19.6]} 42... Rxa3 {[%clk 0:00:18.3]} 43.
Rxc7 {[%clk 0:00:20.1]} 43... Nd3 {[%clk 0:00:19.7]} 44. Rd1 {[%clk 0:00:18.5]}
44... Rxf4 {[%clk 0:00:20]} 45. Rb1 {[%clk 0:00:15.1]} 45... Rf8 {[%clk
0:00:14.6]} 46. h3 {[%clk 0:00:15.6]} 46... Nf4 {[%clk 0:00:04.8]} 47. Rbb7
{[%clk 0:00:15.6]} 47... Ne6 {[%clk 0:00:06.3]} 48. Re7 {[%clk 0:00:16.2]} 48...
Ra6 {[%clk 0:00:05.3]} 49. Rxh7+ {[%clk 0:00:15.9]} 49... Kg8 {[%clk 0:00:06.6]}
50. Rh6 {[%clk 0:00:16.3]} 50... Ra1+ {[%clk 0:00:07.8]} 51. Kh2 {[%clk
0:00:16.8]} 51... Ra6 {[%clk 0:00:09.2]} 52. Rxg6+ {[%clk 0:00:17.3]} 52... Kh8
{[%clk 0:00:10.9]} 53. Re7 {[%clk 0:00:17.9]} 53... Rg8 {[%clk 0:00:11.9]} 54.
Rgxe6 {[%clk 0:00:18.3]} 54... Rxe6 {[%clk 0:00:13.5]} 55. Rxe6 {[%clk
0:00:19.1]} 55... Rg5 {[%clk 0:00:15.4]} 56. h4 {[%clk 0:00:19.6]} 56... Rf5
{[%clk 0:00:16.8]} 57. g4 {[%clk 0:00:20]} 57... Rf2+ {[%clk 0:00:17.3]} 58. Kg3
{[%clk 0:00:21]} 58... Re2 {[%clk 0:00:19]} 59. h5 {[%clk 0:00:22]} 59... Kg7
{[%clk 0:00:20.4]} 60. g5 {[%clk 0:00:22.3]} 60... Kf7 {[%clk 0:00:21.7]} 61.
Ra6 {[%clk 0:00:22.3]} 61... Re1 {[%clk 0:00:23.2]} 62. Kg4 {[%clk 0:00:21.9]}
62... e4 {[%clk 0:00:24.5]} 63. g6+ {[%clk 0:00:22.6]} 63... Kg7 {[%clk
0:00:25.4]} 64. Ra7+ {[%clk 0:00:22.3]} 64... Kg8 {[%clk 0:00:26.4]} 65. h6
{[%clk 0:00:22.8]} 65... Rg1+ {[%clk 0:00:26]} 66. Kf5 {[%clk 0:00:23.5]} 66...
Rf1+ {[%clk 0:00:27.6]} 67. Kxe4 {[%clk 0:00:23.9]} 67... Re1+ {[%clk
0:00:29.1]} 68. Kf3 {[%clk 0:00:22.9]} 68... Rf1+ {[%clk 0:00:29.3]} 69. Ke2
{[%clk 0:00:22.9]} 69... Rf8 {[%clk 0:00:29.1]} 70. Rg7+ {[%clk 0:00:15.8]}
70... Kh8 {[%clk 0:00:29.9]} 71. Rf7 {[%clk 0:00:15.7]} 71... Re8+ {[%clk
0:00:29]} 72. Kf3 {[%clk 0:00:16.2]} 72... Kg8 {[%clk 0:00:23.3]} 73. Kf4 {[%clk
0:00:15.5]} 73... Ra8 {[%clk 0:00:17.4]} 74. Kg5 {[%clk 0:00:15.8]} 74... Ra5+
{[%clk 0:00:18.2]} 75. Rf5 {[%clk 0:00:16.3]} 75... Ra1 {[%clk 0:00:19.1]} 76.
Rd5 {[%clk 0:00:15.9]} 76... Rg1+ {[%clk 0:00:19.3]} 77. Kf6 {[%clk 0:00:16.8]}
77... Rf1+ {[%clk 0:00:20.6]} 78. Ke6 {[%clk 0:00:16.3]} 78... Re1+ {[%clk
0:00:22.2]} 79. Re5 {[%clk 0:00:15]} 79... Rg1 {[%clk 0:00:22.5]} 80. Kf6 {[%clk
0:00:14.6]} 80... Rf1+ {[%clk 0:00:23.9]} 81. Rf5 {[%clk 0:00:15.4]} 81... Ra1
{[%clk 0:00:23.5]} 82. Ke7 {[%clk 0:00:11.5]} 82... Ra7+ {[%clk 0:00:23.9]} 83.
Ke6 {[%clk 0:00:11.9]} 83... Ra6+ {[%clk 0:00:24.7]} 84. Ke7 {[%clk 0:00:10.7]}
84... Rxg6 {[%clk 0:00:25.6]} 85. Rh5 {[%clk 0:00:10.9]} 85... Kh7 {[%clk
0:00:26.6]} 86. Kf7 {[%clk 0:00:05.9]} 86... Ra6 {[%clk 0:00:26.7]} 87. Rh4
{[%clk 0:00:06.8]} 87... Rxh6 {[%clk 0:00:27.5]} 88. Rxh6+ {[%clk 0:00:07.6]}
88... Kxh6 {[%clk 0:00:29]} 1/2-1/2